bitfinex/quotes_SOLUSD_20250903
["timestamp","ask_amount","ask_price","bid_price","bid_amount"]
[1756895776331,5.17322163,210.22,210.2,0.03]
[1756895776521,0.66,210.21,210.2,0.03]
[1756895776837,5.11322163,210.21,210.2,0.03]
[1756895778236,9.87036924,210.21,210.2,0.03]
[1756895778929,5.11322163,210.21,210.2,0.03]
[1756895780142,0.66,210.21,210.2,0.03]
[1756895780321,5.11322163,210.21,210.2,0.03]
[1756895780519,9.87036924,210.21,210.2,0.03]
[1756895781942,13.59559401,210.2,210.17,0.03]
[1756895782122,0.66,210.2,210.17,0.03]
[1756895782331,0.72,210.22,210.17,4.48322163]
[1756895782542,0.06,210.22,210.18,4.45322163]
[1756895782741,0.06,210.22,210.21,4.45322163]
[1756895783037,0.06,210.22,210.21,4.49322163]
[1756895783859,0.06,210.22,210.21,14.422241]
[1756895784230,0.06,210.22,210.21,19.17938861]
[1756895785146,0.06,210.22,210.21,14.72616698]
[1756895785348,0.06,210.22,210.21,51.822241]
[1756895785557,0.06,210.22,210.21,41.89322163]
[1756895785760,0.06,210.22,210.21,46.65036924]
[1756895785960,0.06,210.22,210.21,48.59681063]
[1756895787060,0.06,210.22,210.21,43.77966302]
[1756895787433,0.06,210.22,210.21,48.53681063]
[1756895787632,0.06,210.22,210.21,48.57681063]
[1756895789263,0.06,210.22,210.21,44.123589]
[1756895789468,0.06,210.22,210.21,48.57681063]
[1756895789831,0.06,210.22,210.21,48.53681063]
[1756895790044,0.06,210.22,210.21,43.77966302]
[1756895791566,0.06,210.22,210.21,48.53681063]
[1756895792262,0.06,210.22,210.21,43.77966302]
[1756895792851,0.06,210.22,210.21,48.53681063]
[1756895793064,0.06,210.22,210.21,128.27681063]
[1756895794271,0.06,210.22,210.21,128.23681063]
[1756895795565,0.06,210.22,210.21,128.27681063]
[1756895795946,0.06,210.22,210.21,123.783589]
[1756895796152,0.06,210.22,210.21,128.23681063]
[1756895796570,0.06,210.22,210.21,81.60644139]
[1756895796768,0.06,210.22,210.21,123.47966302]
[1756895797762,0.06,210.22,210.21,119.02644139]
[1756895798062,0.72,210.22,210.21,119.02644139]
[1756895798273,0.72,210.22,210.21,117.12]
[1756895798976,0.72,210.22,210.21,37.42]
[1756895805175,0.06,210.22,210.21,46.63036924]
[1756895806089,0.06,210.22,210.21,37.42]
[1756895806390,0.06,210.22,210.21,42.17714761]
[1756895806587,0.06,210.22,210.21,46.63036924]
[1756895806765,0.06,210.22,210.21,42.17714761]
[1756895806965,0.06,210.22,210.21,46.63036924]
[1756895807164,0.06,210.22,210.21,41.87322163]
[1756895807461,0.73,210.22,210.21,37.42]
[1756895807979,0.73,210.22,210.21,37.4]
[1756895810157,9.9401638,210.22,210.2,0.03]
[1756895810361,4.45322163,210.21,210.2,37.43]
[1756895810580,5.12322163,210.21,210.2,37.43]
[1756895810780,0.67,210.21,210.2,37.43]
[1756895810984,5.12322163,210.21,210.2,37.43]
[1756895811293,0.67,210.21,210.2,37.43]
[1756895813084,0.06,210.22,210.2,37.43]
[1756895813275,0.73,210.22,210.2,37.43]
[1756895814868,0.67,210.21,210.2,37.43]
[1756895815493,0.73,210.22,210.2,37.43]
[1756895815987,0.06,210.22,210.2,37.43]
[1756895816983,0.73,210.22,210.2,37.43]
[1756895820411,0.06,210.22,210.2,42.18731066]
[1756895820690,0.06,210.22,210.2,37.43]
[1756895821000,0.73,210.22,210.2,37.43]
[1756895822112,0.06,210.22,210.2,37.43]
[1756895822402,0.73,210.22,210.2,37.43]
[1756895822778,0.06,210.22,210.2,37.43]
[1756895823809,0.06,210.22,210.21,2.88832199]
[1756895824305,0.06,210.22,210.21,10.55292926]
[1756895824674,0.06,210.22,210.21,104.41938098]
[1756895824872,0.06,210.25,210.24,39.59559401]
[1756895825095,0.06,210.25,210.24,77.56637026]
[1756895825298,0.06,210.25,210.24,80.45469225]
[1756895825684,0.06,210.25,210.24,85.21116104]
[1756895826523,0.06,210.25,210.24,88.05948303]
[1756895827087,0.06,210.27,210.25,13.59559401]
[1756895827307,0.06,210.27,210.26,40.79904395]
[1756895827494,0.06,210.27,210.26,37.99072196]
[1756895827813,0.06,210.27,210.26,46.93005312]
[1756895828992,0.06,210.27,210.26,44.04173113]
[1756895829382,0.06,210.27,210.26,46.89005312]
[1756895829789,0.06,210.27,210.26,44.04173113]
[1756895829989,0.06,210.27,210.26,46.89005312]
[1756895831113,0.73,210.27,210.26,9.51005312]
[1756895831306,0.73,210.27,210.26,46.89005312]
[1756895831503,0.73,210.27,210.26,126.59005312]
[1756895831896,0.06,210.27,210.26,126.59005312]
[1756895832104,0.77,210.27,210.26,1.90571477]
[1756895832294,0.77,210.27,210.26,37.38]
[1756895832920,0.06,210.27,210.26,40.22832199]
[1756895833219,0.06,210.27,210.26,44.98433835]
[1756895833437,0.06,210.27,210.26,138.89065432]
[1756895833592,0.06,210.27,210.26,138.31993236]
[1756895834308,0.06,210.27,210.26,135.47161037]
[1756895834505,0.06,210.27,210.26,138.31993236]
[1756895834694,0.06,210.27,210.26,140.22546555]
[1756895835094,0.06,210.27,210.26,163.33714356]
[1756895835320,0.06,210.27,210.26,166.18546555]
[1756895836217,0.06,210.27,210.26,163.33714356]
[1756895836425,0.06,210.27,210.26,163.37714356]
[1756895836895,0.06,210.27,210.26,163.33714356]
[1756895837100,0.06,210.27,210.26,163.37714356]
[1756895837397,0.06,210.27,210.26,163.33714356]
[1756895837821,0.06,210.27,210.26,125.95714356]
[1756895838109,0.06,210.27,210.26,163.31714356]
[1756895843527,0.06,210.27,210.26,163.35714356]
[1756895843821,0.06,210.27,210.26,140.20546555]
[1756895843822,1e-08,210.27,210.26,140.20546555]
[1756895844028,1e-08,210.3,210.28,33.59559401]
[1756895844330,1e-08,210.3,210.29,40.77896253]
[1756895844534,1e-08,210.3,210.29,40.81896253]
[1756895844710,1e-08,210.3,210.29,42.72413269]
[1756895844896,1e-08,210.31,210.29,56.3197267]
[1756895845103,1e-08,210.32,210.31,39.59559401]
[1756895845334,0.77,210.38,210.31,160.07450226]
[1756895845507,0.77,210.38,210.35,2.84832199]
[1756895845705,0.77,210.38,210.35,40.20832199]
[1756895845891,0.06,210.38,210.35,40.20832199]
[1756895846097,0.71,210.37,210.35,40.20832199]
[1756895846295,0.71,210.37,210.35,42.11321996]
[1756895846913,0.71,210.37,210.35,46.86720141]
[1756895847121,0.06,210.38,210.35,46.86720141]
[1756895847321,0.71,210.37,210.35,46.86720141]
[1756895847704,0.06,210.38,210.35,46.86720141]
[1756895847899,0.71,210.37,210.35,46.86720141]
[1756895848207,0.06,210.38,210.35,46.86720141]
[1756895848413,0.71,210.37,210.35,46.86720141]
[1756895849025,0.77,210.36,210.35,9.50720141]
[1756895849227,0.77,210.36,210.35,4.75321996]
[1756895849403,0.77,210.36,210.34,2.84832199]
[1756895849603,0.06,210.36,210.34,2.84832199]
[1756895849820,0.06,210.36,210.34,4.75349214]
[1756895850014,0.06,210.36,210.35,37.34]
[1756895850729,0.77,210.36,210.35,37.34]
[1756895851031,0.77,210.36,210.35,42.09398145]
[1756895851336,0.77,210.36,210.35,44.94230344]
[1756895852700,0.77,210.36,210.35,56.26005323]
[1756895852701,0.06,210.36,210.35,56.26005323]
[1756895852901,1e-08,210.36,210.35,70.54166318]
[1756895853327,1e-08,210.36,210.35,59.10837522]
[1756895855716,1e-08,210.36,210.35,61.01309178]
[1756895856533,1e-08,210.36,210.35,60.99309178]
[1756895856709,0.71000001,210.36,210.35,60.42261401]
[1756895857029,0.71000001,210.36,210.35,46.82702]
[1756895858228,0.71000001,210.36,210.35,126.52701999]
[1756895858730,0.71000001,210.36,210.35,126.55701999]
[1756895859935,0.71000001,210.36,210.35,123.708698]
[1756895860232,0.71000001,210.36,210.35,126.55701999]
[1756895860427,0.71000001,210.36,210.35,89.23701999]
[1756895860634,0.71000001,210.36,210.35,126.55701999]
[1756895861022,0.71000001,210.36,210.35,89.23701999]
[1756895861228,0.71000001,210.36,210.35,126.55701999]
[1756895861523,0.71000001,210.36,210.35,87.33230343]
[1756895861722,0.71000001,210.36,210.35,124.65230343]
[1756895861923,0.71000001,210.36,210.35,82.57832198]
[1756895862116,0.71000001,210.36,210.35,117.04999999]
[1756895863239,0.71000001,210.36,210.35,121.80398144]
[1756895863533,0.71000001,210.36,210.35,124.65230343]
[1756895863706,0.71000001,210.36,210.35,121.80398144]
[1756895864639,0.71000001,210.36,210.35,84.48398144]
[1756895864838,0.71000001,210.36,210.35,121.80398144]
[1756895865422,0.71000001,210.36,210.35,124.65230343]
[1756895865741,1e-08,210.36,210.35,140.15279541]
[1756895868547,1e-08,210.36,210.35,143.32544054]
[1756895868846,1e-08,210.38,210.37,122.14391598]
[1756895869143,1e-08,210.38,210.37,159.44391598]
[1756895869646,1e-08,210.38,210.37,159.48391598]
[1756895869819,1e-08,210.38,210.37,164.23744547]
[1756895870019,1e-08,210.38,210.37,166.1417993]
[1756895870743,1e-08,210.39,210.38,13.59559401]
[1756895870945,1e-08,210.39,210.38,17.01431242]
[1756895871449,1e-08,210.39,210.38,14.16599043]
[1756895871646,1e-08,210.39,210.38,21.76761596]
[1756895871837,1e-08,210.39,210.38,103.69620225]
[1756895872026,1e-08,210.39,210.38,103.12580583]
[1756895872229,1e-08,210.39,210.38,107.96382013]
[1756895872859,0.78,210.46,210.38,107.96382013]
[1756895873148,0.78,210.46,210.43,16.443916]
[1756895873317,0.06,210.46,210.43,83.11858286]
[1756895873523,0.78,210.44,210.43,119.84832197]
[1756895873719,0.78,210.44,210.43,126.5046686]
[1756895874845,0.78,210.44,210.43,89.2046686]
[1756895875047,0.78,210.44,210.43,124.60049608]
[1756895876329,0.78,210.44,210.43,79.69999998]
[1756895876539,0.78,210.44,210.43,116.97999998]
[1756895876740,0.78,210.44,210.39,28.84832199]
[1756895877046,0.72,210.43,210.4,37.28]
[1756895877353,0.72,210.42,210.4,37.28]
[1756895877535,0.72,210.41,210.39,33.60131786]
[1756895877741,0.06,210.44,210.39,33.60131786]
[1756895878050,0.06,210.44,210.4,37.28]
[1756895878244,0.72,210.43,210.4,37.28]
[1756895878423,0.72,210.42,210.4,37.28]
[1756895878623,0.72,210.41,210.4,37.28]
[1756895880743,0.72,210.41,210.4,40.12832199]
[1756895881158,0.72,210.41,210.4,37.28]
[1756895881338,0.72,210.41,210.4,42.03285171]
[1756895881542,0.78,210.44,210.4,46.47240953]
[1756895881752,0.06,210.44,210.43,4.43955782]
[1756895881940,0.06,210.44,210.43,116.97999998]
[1756895882460,0.78,210.44,210.43,116.97999998]
[1756895883769,0.78,210.44,210.43,79.69999998]
[1756895884057,0.78,210.44,210.43,116.97999998]
[1756895884961,0.06,210.44,210.43,126.17173191]
[1756895885148,0.78,210.44,210.43,121.73217409]
[1756895885351,0.78,210.44,210.43,84.1395578]
[1756895885659,0.78,210.44,210.43,79.69999998]
[1756895885856,0.78,210.44,210.43,116.97999998]
[1756895886039,0.78,210.44,210.43,79.69999998]
[1756895886233,0.78,210.44,210.43,116.97999998]
[1756895887044,0.78,210.44,210.43,79.69999998]
[1756895887246,5.21955782,210.44,210.43,37.28]
[1756895887765,9.97161819,210.44,210.43,37.28]
[1756895887964,5.53206037,210.44,210.43,37.28]
[1756895888148,9.97161819,210.44,210.43,37.28]
[1756895888344,9.97161819,210.44,210.37,4.43955782]
[1756895888654,4.43955782,210.42,210.38,37.28]
[1756895888851,0.72,210.41,210.38,37.28]
[1756895889041,0.72,210.4,210.38,37.28]
[1756895889246,0.72,210.39,210.38,37.28]
[1756895889668,0.72,210.39,210.36,9.1932965]
[1756895889856,0.72,210.38,210.37,37.28]
[1756895891663,0.72,210.38,210.35,10.00349084]
[1756895891844,0.68,210.37,210.36,37.26]
[1756895892044,0.68,210.39,210.36,37.26]
[1756895892240,0.68,210.39,210.37,4.43955782]
[1756895892446,4.43955782,210.43,210.38,37.26]
[1756895892646,0.68,210.41,210.38,41.69955782]
[1756895892843,0.06,210.44,210.39,4.43955782]
[1756895893064,0.74,210.44,210.42,4.43955782]
[1756895893270,0.74,210.44,210.43,37.26]
[1756895893762,0.74,210.44,210.43,42.01217411]
[1756895894557,0.74,210.44,210.43,37.26]
[1756895895354,0.74,210.44,210.4,4.75279453]
[1756895895659,0.68,210.43,210.41,37.26]
[1756895895859,0.06,210.44,210.41,46.45209355]
[1756895896063,0.74,210.44,210.42,4.43955782]
[1756895896369,0.74,210.44,210.43,37.26]
[1756895896751,0.06,210.44,210.43,116.95999998]
[1756895897346,0.74,210.44,210.43,116.95999998]
[1756895898065,0.74,210.44,210.43,79.69999998]
[1756895898265,0.74,210.44,210.43,116.95999998]
[1756895898768,0.74,210.44,210.43,79.69999998]
[1756895899067,0.74,210.44,210.43,116.95999998]
[1756895902751,0.74,210.44,210.43,37.26]
[1756895904053,0.74,210.44,210.4,88.89224449]
[1756895904256,0.68,210.43,210.41,37.24]
[1756895904473,0.68,210.42,210.41,37.24]
[1756895904979,5.11955782,210.42,210.41,37.24]
[1756895905170,5.11955782,210.42,210.36,0.03]
[1756895905171,9.87195778,210.42,210.36,0.03]
[1756895905374,4.43955782,210.4,210.37,37.24]
[1756895905564,0.68,210.39,210.37,37.24]
[1756895905746,0.68,210.38,210.37,37.24]
[1756895909085,0.68,210.41,210.37,46.43308731]
[1756895909683,0.68,210.41,210.37,41.99352949]
[1756895910865,0.68,210.41,210.37,42.02352949]
[1756895911672,0.68,210.41,210.37,121.72352947]
[1756895912785,0.68,210.4,210.37,121.72352947]
[1756895913455,4.43955782,210.42,210.37,121.72352947]
[1756895913680,0.68,210.4,210.37,121.72352947]
[1756895914874,4.43955782,210.41,210.37,121.72352947]
[1756895915081,5.11955782,210.41,210.37,121.72352947]
[1756895915281,5.17955782,210.44,210.38,4.47955782]
[1756895915461,5.17955782,210.44,210.4,4.43955782]
[1756895915462,0.06,210.44,210.4,4.43955782]
[1756895915663,0.06,210.44,210.41,37.24]
[1756895915864,0.06,210.44,210.41,41.67955782]
[1756895916684,0.06,210.44,210.42,4.75239996]
[1756895916994,0.06,210.44,210.43,37.24]
[1756895917178,0.06,210.44,210.43,116.93999998]
[1756895917368,0.06,210.44,210.43,121.3795578]
[1756895918176,0.06,210.44,210.43,121.4195578]
[1756895918369,0.06,210.44,210.43,41.71955782]
[1756895918889,0.06,210.44,210.43,46.47173193]
[1756895919581,0.06,210.44,210.43,48.37590444]
[1756895919984,0.06,210.44,210.43,48.33590444]
[1756895920198,0.06,210.44,210.43,48.37590444]
[1756895920385,0.06,210.44,210.43,61.97149845]
[1756895921185,0.06,210.44,210.43,61.93149845]
[1756895921496,0.06,210.44,210.43,61.97149845]
[1756895922198,0.06,210.44,210.43,61.93149845]
[1756895922592,0.06,210.44,210.43,6.65634662]
[1756895922787,0.06,210.44,210.43,43.87634662]
[1756895922987,0.06,210.44,210.43,48.31590444]
[1756895923604,0.06,210.44,210.43,141.65149843]
[1756895923894,0.06,210.44,210.43,146.40461618]
[1756895924504,0.06,210.44,210.43,146.36461618]
[1756895924677,0.06,210.44,210.43,109.14461618]
[1756895924879,0.06,210.44,210.43,141.92505836]
[1756895925092,0.06,210.44,210.43,146.36461618]
[1756895925684,0.06,210.44,210.43,146.40461618]
[1756895925986,0.06,210.44,210.43,146.36461618]
[1756895926202,0.06,210.44,210.43,128.32946435]
[1756895926399,0.06,210.44,210.43,132.76902217]
[1756895926780,0.06,210.44,210.43,128.32946435]
[1756895926978,0.06,210.44,210.43,132.76902217]
[1756895927703,0.06,210.44,210.43,95.54902217]
[1756895927881,0.06,210.44,210.43,132.76902217]
[1756895928081,0.06,210.44,210.43,146.36461618]
[1756895932892,0.06,210.44,210.43,146.40461618]
[1756895934186,0.06,210.46,210.44,105.69999998]
[1756895934504,0.06,210.46,210.45,41.63955782]
[1756895934680,0.06,210.46,210.45,41.67955782]
[1756895935284,0.06,210.46,210.45,43.58327721]
[1756895935599,0.06,210.46,210.45,123.28327719]
[1756895936583,0.06,210.46,210.45,128.03499968]
[1756895937111,1e-08,210.46,210.45,141.91491683]
[1756895938201,1e-08,210.46,210.45,104.71491683]
[1756895938395,1e-08,210.46,210.45,141.91491683]
[1756895938890,1e-08,210.46,210.45,99.95103587]
[1756895939101,1e-08,210.46,210.45,104.39059369]
[1756895939301,1e-08,210.46,210.45,137.15103587]
[1756895939496,1e-08,210.46,210.45,141.59059369]
[1756895940615,1e-08,210.46,210.45,104.39059369]
[1756895940917,0.71000001,210.46,210.45,127.97499968]
[1756895941398,0.71000001,210.46,210.45,123.53544186]
[1756895941399,1e-08,210.46,210.45,123.53544186]
[1756895941604,1e-08,210.46,210.45,127.97499968]
[1756895942393,0.71000001,210.46,210.45,127.97499968]
[1756895943588,0.71000001,210.46,210.45,126.37569837]
[1756895944887,1e-08,210.46,210.45,140.00129238]
[1756895945088,1e-08,210.46,210.45,140.04129238]
[1756895947205,0.06,210.48,210.47,119.23559398]
[1756895947400,0.06,210.48,210.47,105.63999997]
[1756895947609,0.06,210.48,210.47,108.48025648]
[1756895947806,0.06,210.48,210.47,110.38424773]
[1756895947990,0.77,210.48,210.47,144.72399122]
[1756895948310,0.77,210.48,210.47,147.56424773]
[1756895949111,0.77,210.48,210.47,149.47526218]
[1756895950300,0.77,210.48,210.47,118.72399122]
[1756895950713,0.77,210.48,210.47,121.57127093]
[1756895952504,0.77,210.48,210.47,124.41152744]
[1756895952901,0.77,210.48,210.47,121.57127093]
[1756895953711,0.77,210.48,210.47,124.41152744]
[1756895954499,0.77,210.48,210.47,126.31542806]
[1756895955520,0.77,210.48,210.47,81.54390059]
[1756895955817,0.77,210.48,210.47,118.70390059]
[1756895956396,0.77,210.48,210.47,116.79999997]
[1756895958905,0.77,210.48,210.47,37.16]
[1756895962209,0.77,210.48,210.45,2.93025651]
[1756895962405,0.71,210.47,210.46,37.16]
[1756895963405,0.71,210.47,210.45,0.03]
[1756895963406,3.55025651,210.47,210.45,0.03]
[1756895963609,3.55025651,210.47,210.46,37.16]
[1756895964007,0.71,210.47,210.46,37.16]
[1756895967133,3.55025651,210.47,210.46,37.16]
[1756895967834,0.71,210.47,210.46,37.16]
[1756895968014,0.71,210.47,210.46,37.14]
[1756895968211,0.71,210.47,210.45,0.03]
[1756895968534,0.71,210.47,210.46,37.14]
[1756895970331,2.90025651,210.48,210.46,37.14]
[1756895970332,0.06,210.48,210.46,37.14]
[1756895970638,0.06,210.48,210.46,39.98025651]
[1756895970639,0.77,210.48,210.46,39.98025651]
[1756895970828,0.71,210.47,210.46,37.14]
[1756895973949,0.06,210.48,210.46,37.14]
[1756895974110,0.06,210.48,210.46,41.89141564]
[1756895974314,0.06,210.48,210.46,44.73167215]
[1756895974931,0.06,210.48,210.46,46.6356634]
[1756895975338,0.06,210.48,210.47,2.84025651]
[1756895975828,0.06,210.48,210.47,9.49551871]
[1756895976032,0.06,210.48,210.47,4.75127096]
[1756895976719,0.77,210.48,210.46,37.14]
[1756895976927,0.77,210.48,210.46,39.04408187]
[1756895977332,0.77,210.48,210.46,1.90408187]
[1756895977534,0.77,210.48,210.47,37.14]
[1756895978952,0.77,210.48,210.45,5.71051302]
[1756895979159,0.06,210.48,210.47,37.14]
[1756895979656,0.77,210.48,210.47,37.14]
[1756895979957,0.77,210.48,210.47,79.63999997]
[1756895980128,0.77,210.48,210.47,116.77999997]
[1756895981159,0.06,210.48,210.47,121.53127093]
[1756895984232,0.06,210.48,210.47,123.43526217]
[1756895985245,0.06,210.48,210.47,118.68399121]
[1756895985547,0.74,210.48,210.47,118.68399121]
[1756895986949,0.06,210.48,210.47,118.68399121]
[1756895987137,0.06,210.48,210.47,126.31551868]
[1756895987335,0.06,210.48,210.47,139.91111269]
[1756895987539,0.06,210.48,210.47,89.13551868]
[1756895987854,0.06,210.48,210.47,129.7395117]
[1756895990235,0.06,210.48,210.47,129.73839056]
[1756895990541,0.06,210.48,210.47,126.89813405]
[1756895990742,0.06,210.48,210.47,129.73839056]
[1756895995638,0.74,210.48,210.47,87.8671196]
[1756895995838,0.74,210.48,210.47,118.64399121]
[1756895996242,0.06,210.48,210.47,126.23551868]
[1756895996465,0.06,210.48,210.47,126.27551868]
[1756895996639,0.06,210.48,210.47,126.23551868]
[1756895996839,0.06,210.48,210.47,139.83111269]
[1756895997746,0.06,210.49,210.48,93.17559398]
[1756895997945,0.06,210.49,210.48,96.01585049]
[1756895998353,0.06,210.49,210.48,97.91938869]
[1756895998860,0.06,210.49,210.48,101.45103649]
[1756895999250,0.06,210.49,210.48,87.85544248]
[1756895999665,0.06,210.49,210.48,92.6064877]
[1756896000360,0.06,210.49,210.48,129.7064877]
[1756896001051,0.06,210.49,210.48,92.6064877]
[1756896001259,0.74,210.49,210.48,129.7064877]
[1756896001566,0.06,210.49,210.48,126.86623119]
[1756896001869,0.06,210.49,210.48,129.7064877]
[1756896002540,0.06,210.49,210.48,85.01518597]
[1756896002738,0.74,210.49,210.48,124.95544248]
[1756896003147,0.74,210.49,210.48,129.7064877]
[1756896003352,0.06,210.49,210.48,129.7064877]
[1756896003556,0.06,210.49,210.48,131.30349798]
[1756896004968,0.06,210.49,210.48,127.77185018]
[1756896005674,0.74,210.49,210.48,123.33458339]
[1756896005870,0.74,210.49,210.48,127.77185018]
[1756896006485,0.06,210.49,210.48,127.77185018]
[1756896007057,0.06,210.49,210.48,127.81185018]
[1756896007482,0.06,210.49,210.48,141.34744419]
[1756896007979,0.06,210.49,210.48,162.9501774]
[1756896008170,0.06,210.49,210.48,167.38744419]
[1756896008663,0.06,210.49,210.48,141.38744419]
[1756896010277,0.06,210.52,210.51,0.28432314]
[1756896010465,0.06,210.52,210.51,134.9771839]
[1756896011177,0.06,210.52,210.51,136.88026928]
[1756896011391,0.06,210.52,210.51,136.92026928]
[1756896012068,0.06,210.52,210.51,141.67063743]
[1756896012972,0.06,210.52,210.51,141.63063743]
[1756896013181,0.06,210.52,210.51,141.67063743]
[1756896014062,0.06,210.52,210.51,141.63063743]
[1756896014672,0.06,210.52,210.51,128.03504342]
[1756896014987,0.06,210.52,210.51,141.67063743]
[1756896015578,0.06,210.54,210.53,119.05559397]
[1756896015884,0.06,210.54,210.53,165.30277763]
[1756896016877,0.06,210.54,210.53,167.20586301]
[1756896018587,0.06,210.54,210.53,162.76859622]
[1756896018791,0.06,210.54,210.53,167.20586301]
[1756896019287,0.06,210.54,210.53,141.24586301]
[1756896019688,0.06,210.54,210.53,141.20586301]
[1756896021867,0.06,210.54,210.53,141.24586301]
[1756896022268,0.2,210.55,210.54,93.05559396]
[1756896022469,0.2,210.55,210.54,97.77718389]
[1756896022893,0.2,210.55,210.54,134.83718389]
[1756896023394,0.2,210.55,210.54,141.48968895]
[1756896023684,0.06,210.57,210.56,26.0]
[1756896023886,1e-08,210.57,210.56,134.83718389]
[1756896024478,1e-08,210.57,210.56,139.27445068]
[1756896024997,1e-08,210.57,210.56,144.0236908]
[1756896031108,0.68,210.62,210.61,93.05559396]
[1756896031306,0.68,210.64,210.62,13.59559401]
[1756896031516,0.68,210.64,210.63,55.0728608]
[1756896031713,0.68,210.64,210.63,66.93436198]
[1756896032518,0.68,210.64,210.63,71.68202375]
[1756896033420,0.68,210.64,210.63,34.64202375]
[1756896033609,0.68,210.64,210.63,71.68202375]
[1756896034107,0.68,210.64,210.63,34.64202375]
[1756896034305,0.68,210.64,210.63,71.66202375]
[1756896035003,0.74,210.64,210.63,71.66202375]
[1756896035400,0.74,210.64,210.63,34.64202375]
[1756896035630,0.74,210.64,210.63,91.32150113]
[1756896035825,0.74,210.64,210.63,116.47999995]
[1756896036230,0.74,210.64,210.63,120.91726674]
[1756896037430,0.74,210.64,210.63,83.89726674]
[1756896037732,5.17726679,210.64,210.63,4.43726679]
[1756896038027,5.17726679,210.64,210.63,37.02]
[1756896039112,9.92470317,210.64,210.59,14.27178231]
[1756896039425,5.11726679,210.63,210.6,37.02]
[1756896039624,0.68,210.62,210.6,37.02]
[1756896039838,0.68,210.61,210.6,37.02]
[1756896040013,0.68,210.61,210.6,41.82743638]
[1756896042137,0.68,210.61,210.6,121.28743633]
[1756896043926,5.11726679,210.61,210.6,121.28743633]
[1756896044619,0.68,210.61,210.6,121.28743633]
[1756896045817,0.68,210.61,210.6,126.03577441]
[1756896046227,0.68,210.61,210.6,121.28743633]
[1756896047723,0.68,210.61,210.6,84.26743633]
[1756896047918,0.68,210.61,210.6,121.28743633]
[1756896048129,5.11726679,210.61,210.6,121.28743633]
[1756896049740,5.11726679,210.61,210.6,37.02]
[1756896052140,5.11726679,210.61,210.6,42.13726679]
[1756896052745,5.11726679,210.61,210.6,37.02]
[1756896052925,5.11726679,210.61,210.58,79.45999995]
[1756896053118,5.15726679,210.6,210.59,42.11726679]
[1756896053316,5.15726679,210.6,210.59,37.0]
[1756896053519,9.90560487,210.6,210.59,37.0]
[1756896053743,9.90560487,210.6,210.56,79.45999995]
[1756896053946,4.43726679,210.58,210.57,37.0]
[1756896054248,5.15726679,210.58,210.57,37.0]
[1756896054747,0.72,210.58,210.57,37.0]
[1756896054937,5.15726679,210.58,210.57,37.0]
[1756896055243,4.43726679,210.6,210.57,37.0]
[1756896055433,0.72,210.58,210.57,37.0]
[1756896056133,5.15726679,210.58,210.57,37.0]
[1756896056439,0.72,210.58,210.56,79.45999995]
[1756896056634,4.43726679,210.58,210.57,37.0]
[1756896057246,0.72,210.58,210.57,37.0]
[1756896057426,0.06,210.61,210.57,41.80832219]
[1756896057625,5.15726679,210.6,210.57,41.80832219]
[1756896057957,0.72,210.59,210.57,37.0]
[1756896058126,0.72,210.59,210.58,5.15726679]
[1756896058834,0.72,210.59,210.58,3.71726679]
[1756896059035,13.59559401,210.5,210.47,0.03]
[1756896059234,30.75149672,210.46,210.45,0.03]
[1756896059424,42.29169965,210.46,210.44,0.03]
[1756896059628,26.0,210.43,210.37,0.03]